[Event "Late-Titled-Tuesday-Blitz-March-19-2024"]
[Site "Chess.com"]
[Date "2024.03.19"]
[Round "2"]
[White "el_sporco"]
[Black "HaryKane"]
[Result "1-0"]
[WhiteElo "2398"]
[BlackElo "2582"]
[TimeControl "180+1"]
[EndTime "14:17:28 PDT"]
[Termination "el_sporco won by resignation"]

1. e4 {[%clk 0:03:00.9]} 1... e6 {[%clk 0:02:59]} 2. d4 {[%clk 0:03:00.2]} 2...
d5 {[%clk 0:02:55.9]} 3. Nc3 {[%clk 0:03:00.8]} 3... dxe4 {[%clk 0:02:49.9]} 4.
Nxe4 {[%clk 0:03:01.7]} 4... Nd7 {[%clk 0:02:43.9]} 5. Be3 {[%clk 0:02:55.2]}
5... Ngf6 {[%clk 0:02:43.5]} 6. Nxf6+ {[%clk 0:02:55.2]} 6... Nxf6 {[%clk
0:02:44.4]} 7. c3 {[%clk 0:02:55.2]} 7... Be7 {[%clk 0:02:41.9]} 8. Bd3 {[%clk
0:02:54.2]} 8... O-O {[%clk 0:02:40.4]} 9. Qc2 {[%clk 0:02:51.1]} 9... Rb8
{[%clk 0:02:34.8]} 10. O-O-O {[%clk 0:02:51.3]} 10... b5 {[%clk 0:02:34.9]} 11.
Nf3 {[%clk 0:02:51.8]} 11... b4 {[%clk 0:02:35.2]} 12. c4 {[%clk 0:02:47.8]}
12... a5 {[%clk 0:02:25.6]} 13. Ne5 {[%clk 0:02:47.3]} 13... Bd7 {[%clk
0:02:25.9]} 14. g4 {[%clk 0:02:44.7]} 14... a4 {[%clk 0:02:10.1]} 15. b3 {[%clk
0:02:29.1]} 15... axb3 {[%clk 0:01:59.4]} 16. axb3 {[%clk 0:02:22.2]} 16... g6
{[%clk 0:01:55.5]} 17. h4 {[%clk 0:02:20.8]} 17... Ra8 {[%clk 0:01:53.2]} 18. h5
{[%clk 0:02:16.6]} 18... Ra1+ {[%clk 0:01:29.1]} 19. Kb2 {[%clk 0:01:44.5]}
19... Rxd1 {[%clk 0:01:23.9]} 20. Rxd1 {[%clk 0:01:41.5]} 20... Qa8 {[%clk
0:01:21.6]} 21. Ra1 {[%clk 0:01:38.4]} 21... Qd8 {[%clk 0:00:56.8]} 22. hxg6
{[%clk 0:01:37.4]} 22... fxg6 {[%clk 0:00:56.9]} 23. Bxg6 {[%clk 0:01:35.6]}
23... Bd6 {[%clk 0:00:50.1]} 24. Bxh7+ {[%clk 0:01:29.1]} 24... Kh8 {[%clk
0:00:49.8]} 25. Ng6+ {[%clk 0:01:17]} 25... Kg7 {[%clk 0:00:48.4]} 26. Nxf8
{[%clk 0:01:14]} 26... Qxf8 {[%clk 0:00:44.4]} 27. Qg6+ {[%clk 0:01:11.3]} 27...
Kh8 {[%clk 0:00:44]} 28. Rh1 {[%clk 0:01:08.8]} 28... Qg7 {[%clk 0:00:39.9]} 29.
Bh6 {[%clk 0:00:52.1]} 29... Qxg6 {[%clk 0:00:29.3]} 30. Bxg6 {[%clk 0:00:53]}
30... Kg8 {[%clk 0:00:29.6]} 31. f3 {[%clk 0:00:48.9]} 31... c5 {[%clk
0:00:28.8]} 32. Be3 {[%clk 0:00:48.3]} 32... cxd4 {[%clk 0:00:24.2]} 33. Bxd4
{[%clk 0:00:49.2]} 33... e5 {[%clk 0:00:24.9]} 34. Be3 {[%clk 0:00:45.4]} 34...
Bc6 {[%clk 0:00:24.4]} 35. Rd1 {[%clk 0:00:39.3]} 35... Be7 {[%clk 0:00:21]} 36.
g5 {[%clk 0:00:36.9]} 36... Nd7 {[%clk 0:00:20.6]} 37. Be4 {[%clk 0:00:36.1]}
37... Bxe4 {[%clk 0:00:20.5]} 38. Rxd7 {[%clk 0:00:34.7]} 1-0

[Event "Late-Titled-Tuesday-Blitz-March-19-2024"]
[Site "Chess.com"]
[Date "2024.03.19"]
[Round "2"]
[White "Lennis93"]
[Black "woodhy"]
[Result "1-0"]
[WhiteElo "2741"]
[BlackElo "2438"]
[TimeControl "180+1"]
[EndTime "14:17:31 PDT"]
[Termination "Lennis93 won by resignation"]

1. d4 {[%clk 0:02:46.3]} 1... Nf6 {[%clk 0:02:59.4]} 2. c4 {[%clk 0:02:46.2]}
2... e6 {[%clk 0:02:58.7]} 3. Nf3 {[%clk 0:02:45.2]} 3... b6 {[%clk 0:02:57.6]}
4. g3 {[%clk 0:02:44.9]} 4... Bb7 {[%clk 0:02:54.7]} 5. Bg2 {[%clk 0:02:44.9]}
5... Be7 {[%clk 0:02:51.2]} 6. O-O {[%clk 0:02:44.7]} 6... O-O {[%clk
0:02:50.5]} 7. d5 {[%clk 0:02:45.1]} 7... exd5 {[%clk 0:02:46.1]} 8. Nh4 {[%clk
0:02:45.1]} 8... c6 {[%clk 0:02:45.3]} 9. cxd5 {[%clk 0:02:45.4]} 9... Nxd5
{[%clk 0:02:46.2]} 10. Nf5 {[%clk 0:02:45.5]} 10... Re8 {[%clk 0:02:44.6]} 11.
e4 {[%clk 0:02:45]} 11... Nc7 {[%clk 0:02:42.9]} 12. Nc3 {[%clk 0:02:44.1]}
12... Ba6 {[%clk 0:02:39.7]} 13. Re1 {[%clk 0:02:43.6]} 13... Bf6 {[%clk
0:02:34.1]} 14. Nd6 {[%clk 0:02:40.6]} 14... Re6 {[%clk 0:02:33.5]} 15. Bf4
{[%clk 0:02:40.8]} 15... Ne8 {[%clk 0:02:32.2]} 16. Nf5 {[%clk 0:02:34]} 16...
Be5 {[%clk 0:02:23.2]} 17. Bxe5 {[%clk 0:02:23.8]} 17... Rxe5 {[%clk 0:02:24.1]}
18. f4 {[%clk 0:02:23.7]} 18... Re6 {[%clk 0:02:13]} 19. e5 {[%clk 0:02:16.1]}
19... Bb7 {[%clk 0:02:09.5]} 20. Ne4 {[%clk 0:02:11.8]} 20... Na6 {[%clk
0:02:03.4]} 21. Ng5 {[%clk 0:02:11.8]} 21... Rg6 {[%clk 0:01:57]} 22. Qh5 {[%clk
0:01:49.7]} 22... Rxg5 {[%clk 0:01:03]} 23. Qxg5 {[%clk 0:01:37.8]} 23... Qxg5
{[%clk 0:01:00.2]} 24. fxg5 {[%clk 0:01:38.7]} 24... Nc5 {[%clk 0:01:00.4]} 25.
Nd6 {[%clk 0:01:35.7]} 25... Nxd6 {[%clk 0:00:59.1]} 26. exd6 {[%clk 0:01:36.6]}
26... Ne6 {[%clk 0:00:59.8]} 27. h4 {[%clk 0:01:35.2]} 27... Kf8 {[%clk
0:00:59]} 28. Rad1 {[%clk 0:01:33.7]} 28... Rb8 {[%clk 0:00:57.8]} 29. Kf2
{[%clk 0:01:31.6]} 29... c5 {[%clk 0:00:57.5]} 30. Bh3 {[%clk 0:01:23.4]} 30...
Bc6 {[%clk 0:00:49.4]} 31. Re5 {[%clk 0:01:22.2]} 31... Re8 {[%clk 0:00:39.3]}
32. Rde1 {[%clk 0:01:21.5]} 32... Rc8 {[%clk 0:00:24.7]} 33. h5 {[%clk
0:01:21.1]} 33... Nxg5 {[%clk 0:00:22.6]} 34. Rxg5 {[%clk 0:01:20.3]} 34... f6
{[%clk 0:00:20.4]} 35. Rf5 {[%clk 0:01:18.8]} 35... Re8 {[%clk 0:00:17.8]} 36.
Rxe8+ {[%clk 0:01:17.6]} 36... Kxe8 {[%clk 0:00:18.7]} 37. Bg2 {[%clk
0:01:17.3]} 37... Bb5 {[%clk 0:00:17]} 38. h6 {[%clk 0:01:13.2]} 38... Kf7
{[%clk 0:00:16.1]} 39. hxg7 {[%clk 0:01:13.1]} 39... Kxg7 {[%clk 0:00:17]} 40.
Bd5 {[%clk 0:01:07.8]} 40... Bd3 {[%clk 0:00:15.6]} 41. Rf4 {[%clk 0:01:07.4]}
41... f5 {[%clk 0:00:15.1]} 42. Ke3 {[%clk 0:01:03.3]} 42... Bb1 {[%clk
0:00:14]} 43. Rf1 {[%clk 0:01:03.3]} 43... Bc2 {[%clk 0:00:13.1]} 44. Kd2 {[%clk
0:00:58.5]} 1-0

[Event "Late-Titled-Tuesday-Blitz-March-19-2024"]
[Site "Chess.com"]
[Date "2024.03.19"]
[Round "2"]
[White "Pingah9"]
[Black "Piriflillo"]
[Result "1-0"]
[WhiteElo "2576"]
[BlackElo "2363"]
[TimeControl "180+1"]
[EndTime "14:17:31 PDT"]
[Termination "Pingah9 won by resignation"]

1. e4 {[%clk 0:03:00.9]} 1... d5 {[%clk 0:02:59]} 2. Nf3 {[%clk 0:02:57.9]} 2...
dxe4 {[%clk 0:02:57.3]} 3. Ng5 {[%clk 0:02:57.8]} 3... Nf6 {[%clk 0:02:55]} 4.
Bc4 {[%clk 0:02:57.8]} 4... e6 {[%clk 0:02:46.4]} 5. Nc3 {[%clk 0:02:57.3]} 5...
Nbd7 {[%clk 0:02:31]} 6. Qe2 {[%clk 0:02:52]} 6... Be7 {[%clk 0:02:27.1]} 7.
Bxe6 {[%clk 0:02:46.6]} 7... O-O {[%clk 0:01:52.5]} 8. Bxf7+ {[%clk 0:02:35.5]}
8... Rxf7 {[%clk 0:01:52.1]} 9. Ne6 {[%clk 0:02:35.3]} 9... Qe8 {[%clk
0:01:51.8]} 10. Nxc7 {[%clk 0:02:35]} 10... Qd8 {[%clk 0:01:52.2]} 11. Nxa8
{[%clk 0:02:32.8]} 11... b6 {[%clk 0:01:33.4]} 12. O-O {[%clk 0:01:57.9]} 12...
Bb7 {[%clk 0:01:29.4]} 13. Nxb6 {[%clk 0:01:53.5]} 13... Nxb6 {[%clk 0:01:22]}
14. d3 {[%clk 0:01:49.6]} 14... exd3 {[%clk 0:01:21.8]} 15. cxd3 {[%clk
0:01:50.5]} 15... Nbd5 {[%clk 0:01:19]} 16. Re1 {[%clk 0:01:45.3]} 16... Nxc3
{[%clk 0:01:13.3]} 17. bxc3 {[%clk 0:01:46.2]} 17... Qd5 {[%clk 0:01:13.7]} 18.
f3 {[%clk 0:01:34.1]} 18... Bc5+ {[%clk 0:01:01.4]} 19. d4 {[%clk 0:01:26.1]}
19... Bd6 {[%clk 0:00:45.6]} 20. Rb1 {[%clk 0:01:12.8]} 20... Qh5 {[%clk
0:00:32.5]} 21. h3 {[%clk 0:01:04.7]} 21... Qh4 {[%clk 0:00:24.8]} 22. Qe6
{[%clk 0:00:48.5]} 22... Qg3 {[%clk 0:00:15.2]} 23. Rxb7 {[%clk 0:00:44.5]}
23... Qh2+ {[%clk 0:00:15.3]} 24. Kf1 {[%clk 0:00:36.4]} 24... Nd7 {[%clk
0:00:02.2]} 25. Rxd7 {[%clk 0:00:25.8]} 25... Qh1+ {[%clk 0:00:02.6]} 26. Kf2
{[%clk 0:00:25.6]} 1-0

[Event "Late-Titled-Tuesday-Blitz-March-19-2024"]
[Site "Chess.com"]
[Date "2024.03.19"]
[Round "2"]
[White "rychessmaster1"]
[Black "ATM622"]
[Result "1-0"]
[WhiteElo "2761"]
[BlackElo "2508"]
[TimeControl "180+1"]
[EndTime "14:17:35 PDT"]
[Termination "rychessmaster1 won by resignation"]

1. d4 {[%clk 0:03:00.9]} 1... Nf6 {[%clk 0:02:58.6]} 2. c4 {[%clk 0:03:00.7]}
2... e6 {[%clk 0:02:58]} 3. Nf3 {[%clk 0:03:00.4]} 3... d5 {[%clk 0:02:58]} 4.
Nc3 {[%clk 0:03:00.3]} 4... Be7 {[%clk 0:02:57.7]} 5. Bf4 {[%clk 0:02:59.7]}
5... O-O {[%clk 0:02:55.7]} 6. e3 {[%clk 0:03:00]} 6... dxc4 {[%clk 0:02:53.4]}
7. Bxc4 {[%clk 0:02:59.5]} 7... b6 {[%clk 0:02:52.5]} 8. O-O {[%clk 0:02:41.9]}
8... Bb7 {[%clk 0:02:52.1]} 9. h3 {[%clk 0:02:37.6]} 9... c5 {[%clk 0:02:51.6]}
10. Qe2 {[%clk 0:02:21.8]} 10... Nd5 {[%clk 0:02:43.8]} 11. Bg3 {[%clk
0:02:13.8]} 11... cxd4 {[%clk 0:02:35.4]} 12. Bxd5 {[%clk 0:01:59.6]} 12... exd5
{[%clk 0:02:25]} 13. Nxd4 {[%clk 0:01:59.8]} 13... Bf6 {[%clk 0:02:18.9]} 14.
Rfd1 {[%clk 0:01:58.8]} 14... Re8 {[%clk 0:02:19]} 15. Qd2 {[%clk 0:01:47.2]}
15... Na6 {[%clk 0:02:15.8]} 16. Ndb5 {[%clk 0:01:33.9]} 16... Qd7 {[%clk
0:02:04.3]} 17. Nd6 {[%clk 0:01:29.4]} 17... Red8 {[%clk 0:01:53.9]} 18. Nxb7
{[%clk 0:01:29]} 18... Bxc3 {[%clk 0:01:53.1]} 19. Qxc3 {[%clk 0:01:27.6]} 19...
Qxb7 {[%clk 0:01:53.2]} 20. Rac1 {[%clk 0:00:53.6]} 20... Rac8 {[%clk
0:01:53.1]} 21. Qd4 {[%clk 0:00:49.5]} 21... Rxc1 {[%clk 0:01:45.7]} 22. Rxc1
{[%clk 0:00:50.2]} 22... Nc5 {[%clk 0:01:46]} 23. f3 {[%clk 0:00:43.1]} 23...
Ne6 {[%clk 0:01:39.7]} 24. Qe5 {[%clk 0:00:43.6]} 24... h6 {[%clk 0:01:33.2]}
25. Bf2 {[%clk 0:00:42.3]} 25... Nc5 {[%clk 0:01:24.7]} 26. Rd1 {[%clk
0:00:40.8]} 26... Qa8 {[%clk 0:01:18.1]} 27. b3 {[%clk 0:00:26.8]} 27... a5
{[%clk 0:01:14]} 28. Qc7 {[%clk 0:00:26.6]} 28... Nd7 {[%clk 0:00:33.5]} 29. Qd6
{[%clk 0:00:20.6]} 29... Nf6 {[%clk 0:00:17.9]} 30. Qxb6 {[%clk 0:00:21.1]}
30... Rd6 {[%clk 0:00:15.3]} 31. Qxd6 {[%clk 0:00:21]} 1-0

[Event "Late-Titled-Tuesday-Blitz-March-19-2024"]
[Site "Chess.com"]
[Date "2024.03.19"]
[Round "2"]
[White "whitemirrorninja"]
[Black "kassablanca"]
[Result "0-1"]
[WhiteElo "2453"]
[BlackElo "2740"]
[TimeControl "180+1"]
[EndTime "14:17:35 PDT"]
[Termination "kassablanca won by resignation"]

1. d4 {[%clk 0:03:00.9]} 1... d5 {[%clk 0:02:59.9]} 2. c4 {[%clk 0:02:59.9]}
2... e6 {[%clk 0:03:00.3]} 3. a3 {[%clk 0:03:00]} 3... Nf6 {[%clk 0:02:59.4]} 4.
cxd5 {[%clk 0:02:59.6]} 4... exd5 {[%clk 0:02:59.6]} 5. Nc3 {[%clk 0:02:58.8]}
5... c6 {[%clk 0:02:58]} 6. Bg5 {[%clk 0:02:58]} 6... Bf5 {[%clk 0:02:43.1]} 7.
e3 {[%clk 0:02:57.9]} 7... Nbd7 {[%clk 0:02:42.9]} 8. Nge2 {[%clk 0:02:56.6]}
8... Bd6 {[%clk 0:02:38.9]} 9. Ng3 {[%clk 0:02:54.3]} 9... Bg6 {[%clk
0:02:38.7]} 10. Bd3 {[%clk 0:02:52.7]} 10... Bxd3 {[%clk 0:02:28.2]} 11. Qxd3
{[%clk 0:02:53.6]} 11... h6 {[%clk 0:02:26.3]} 12. Nf5 {[%clk 0:02:53.9]} 12...
Bf8 {[%clk 0:01:46.7]} 13. Bf4 {[%clk 0:02:53.7]} 13... Nb6 {[%clk 0:01:46.3]}
14. e4 {[%clk 0:02:47]} 14... g6 {[%clk 0:01:36.4]} 15. Ne3 {[%clk 0:02:34.2]}
15... dxe4 {[%clk 0:01:28.4]} 16. Nxe4 {[%clk 0:02:34.1]} 16... Nxe4 {[%clk
0:01:23.1]} 17. Qxe4+ {[%clk 0:02:35]} 17... Qe7 {[%clk 0:01:23.3]} 18. Be5
{[%clk 0:02:17.6]} 18... Bg7 {[%clk 0:01:09.2]} 19. f3 {[%clk 0:02:01.8]} 19...
Bxe5 {[%clk 0:01:06.2]} 20. dxe5 {[%clk 0:01:59.8]} 20... O-O-O {[%clk
0:01:04.4]} 21. O-O {[%clk 0:01:57]} 21... Rhe8 {[%clk 0:00:55.8]} 22. f4 {[%clk
0:01:57.5]} 22... Rd7 {[%clk 0:00:40.5]} 23. a4 {[%clk 0:01:57.8]} 23... a5
{[%clk 0:00:39.3]} 24. Rac1 {[%clk 0:01:46.2]} 24... Kb8 {[%clk 0:00:37]} 25.
Rfd1 {[%clk 0:01:39.9]} 25... Red8 {[%clk 0:00:36.5]} 26. Rxd7 {[%clk
0:01:38.8]} 26... Rxd7 {[%clk 0:00:36.4]} 27. h3 {[%clk 0:01:36.2]} 27... Qb4
{[%clk 0:00:34.1]} 28. Qxb4 {[%clk 0:01:19.3]} 28... axb4 {[%clk 0:00:35]} 29.
a5 {[%clk 0:01:19.9]} 29... Na4 {[%clk 0:00:34.3]} 30. Nc4 {[%clk 0:01:15.9]}
30... Rd4 {[%clk 0:00:28.4]} 31. g3 {[%clk 0:01:12.4]} 31... b3 {[%clk
0:00:25.1]} 32. Kf2 {[%clk 0:01:09.2]} 32... Nc5 {[%clk 0:00:22.7]} 33. Ke3
{[%clk 0:01:09.5]} 33... Rd3+ {[%clk 0:00:21.5]} 34. Ke2 {[%clk 0:01:06.1]}
34... Rxg3 {[%clk 0:00:21.6]} 35. Nd6 {[%clk 0:01:05.7]} 35... Rg2+ {[%clk
0:00:20.6]} 36. Kf3 {[%clk 0:01:04.3]} 36... Rc2 {[%clk 0:00:20.6]} 37. Rd1
{[%clk 0:01:02.8]} 37... Rxb2 {[%clk 0:00:19]} 38. Nc4 {[%clk 0:01:02.6]} 38...
Rc2 {[%clk 0:00:17.6]} 39. Nb6 {[%clk 0:01:02.6]} 39... Ne6 {[%clk 0:00:15.6]}
40. Rd7 {[%clk 0:01:00.7]} 40... b2 {[%clk 0:00:14.9]} 41. Re7 {[%clk
0:01:00.8]} 41... Rd2 {[%clk 0:00:14.3]} 42. Nd7+ {[%clk 0:00:58.6]} 42... Ka7
{[%clk 0:00:12.3]} 43. Nb6 {[%clk 0:00:56.6]} 43... b1=Q {[%clk 0:00:12.6]} 44.
Nc8+ {[%clk 0:00:55.7]} 44... Ka6 {[%clk 0:00:12.4]} 45. Nd6 {[%clk 0:00:54.4]}
45... Qd3+ {[%clk 0:00:12.5]} 46. Kg4 {[%clk 0:00:53.3]} 46... Rg2+ {[%clk
0:00:12]} 0-1

[Event "Late-Titled-Tuesday-Blitz-March-19-2024"]
[Site "Chess.com"]
[Date "2024.03.19"]
[Round "2"]
[White "annasargsyan_m"]
[Black "Road2GM3000"]
[Result "1-0"]
[WhiteElo "2633"]
[BlackElo "2393"]
[TimeControl "180+1"]
[EndTime "14:17:38 PDT"]
[Termination "annasargsyan_m won by resignation"]

1. d4 {[%clk 0:03:00.9]} 1... d5 {[%clk 0:02:56.4]} 2. c4 {[%clk 0:03:01.8]}
2... c6 {[%clk 0:02:56.4]} 3. cxd5 {[%clk 0:03:01.7]} 3... cxd5 {[%clk
0:02:56.6]} 4. Nc3 {[%clk 0:03:02.6]} 4... Nf6 {[%clk 0:02:56.6]} 5. Nf3 {[%clk
0:03:01.3]} 5... Nc6 {[%clk 0:02:56.7]} 6. Bf4 {[%clk 0:03:02]} 6... a6 {[%clk
0:02:55.4]} 7. e3 {[%clk 0:03:02.5]} 7... Bg4 {[%clk 0:02:53.9]} 8. Qb3 {[%clk
0:03:02.7]} 8... Ra7 {[%clk 0:02:53.7]} 9. Ne5 {[%clk 0:03:01.8]} 9... e6 {[%clk
0:02:53.1]} 10. Nxc6 {[%clk 0:02:54.7]} 10... bxc6 {[%clk 0:02:52.3]} 11. Bd3
{[%clk 0:02:55.4]} 11... Bd6 {[%clk 0:02:50.7]} 12. Bxd6 {[%clk 0:02:51.1]}
12... Qxd6 {[%clk 0:02:51.6]} 13. Qb6 {[%clk 0:02:51]} 13... Ra8 {[%clk
0:02:42.4]} 14. O-O {[%clk 0:02:44.3]} 14... O-O {[%clk 0:02:38.1]} 15. Na4
{[%clk 0:02:44.9]} 15... Rfb8 {[%clk 0:02:13.4]} 16. Qa5 {[%clk 0:02:35.3]}
16... Qb4 {[%clk 0:02:07.5]} 17. Qxb4 {[%clk 0:02:31.3]} 17... Rxb4 {[%clk
0:02:04.6]} 18. b3 {[%clk 0:02:32.2]} 18... Nd7 {[%clk 0:01:26.2]} 19. Rac1
{[%clk 0:02:31.7]} 19... e5 {[%clk 0:01:25.5]} 20. Rxc6 {[%clk 0:02:20.1]} 20...
exd4 {[%clk 0:01:25.6]} 21. Rxa6 {[%clk 0:02:07.8]} 21... Rxa6 {[%clk
0:01:20.5]} 22. Bxa6 {[%clk 0:02:08.7]} 22... dxe3 {[%clk 0:01:13]} 23. fxe3
{[%clk 0:02:09.6]} 23... Re4 {[%clk 0:01:04.7]} 24. Kf2 {[%clk 0:02:05.4]} 24...
Ne5 {[%clk 0:00:41.2]} 25. h3 {[%clk 0:02:03.1]} 25... Be6 {[%clk 0:00:38]} 26.
Rd1 {[%clk 0:01:42.7]} 26... Nc6 {[%clk 0:00:28]} 27. Bb7 {[%clk 0:01:36.2]}
27... Nb4 {[%clk 0:00:27.4]} 28. Nc3 {[%clk 0:01:25.8]} 28... Re5 {[%clk
0:00:26.6]} 29. a4 {[%clk 0:01:19.5]} 29... Nc2 {[%clk 0:00:23.5]} 30. a5 {[%clk
0:01:02.5]} 30... d4 {[%clk 0:00:04.9]} 31. a6 {[%clk 0:01:01.8]} 31... Ra5
{[%clk 0:00:03.9]} 32. exd4 {[%clk 0:00:58.2]} 32... Bxb3 {[%clk 0:00:03]} 33.
Rd2 {[%clk 0:00:45.4]} 33... Nb4 {[%clk 0:00:02.6]} 34. Rb2 {[%clk 0:00:45]}
34... Ra3 {[%clk 0:00:03]} 35. Rxb3 {[%clk 0:00:44.3]} 35... Rxb3 {[%clk
0:00:03.4]} 36. a7 {[%clk 0:00:45.2]} 36... Ra3 {[%clk 0:00:02.8]} 37. a8=Q+
{[%clk 0:00:44.6]} 37... Rxa8 {[%clk 0:00:03.5]} 38. Bxa8 {[%clk 0:00:45.2]}
38... Kf8 {[%clk 0:00:04]} 39. Ke3 {[%clk 0:00:42.5]} 39... Ke7 {[%clk
0:00:04.6]} 40. Nd5+ {[%clk 0:00:42.4]} 1-0

[Event "Late-Titled-Tuesday-Blitz-March-19-2024"]
[Site "Chess.com"]
[Date "2024.03.19"]
[Round "2"]
[White "AktilekAskarovich"]
[Black "zverr1"]
[Result "1-0"]
[WhiteElo "2379"]
[BlackElo "2555"]
[TimeControl "180+1"]
[EndTime "14:17:40 PDT"]
[Termination "AktilekAskarovich won by resignation"]

1. d4 {[%clk 0:02:57.8]} 1... Nf6 {[%clk 0:03:00.3]} 2. c4 {[%clk 0:02:57.6]}
2... g6 {[%clk 0:02:59.6]} 3. Nf3 {[%clk 0:02:54.8]} 3... Bg7 {[%clk 0:02:58.4]}
4. e3 {[%clk 0:02:55.1]} 4... c5 {[%clk 0:02:57]} 5. d5 {[%clk 0:02:53.9]} 5...
e6 {[%clk 0:02:53.4]} 6. Nc3 {[%clk 0:02:53.6]} 6... exd5 {[%clk 0:02:53.5]} 7.
cxd5 {[%clk 0:02:54.5]} 7... d6 {[%clk 0:02:54.2]} 8. Be2 {[%clk 0:02:54.6]}
8... O-O {[%clk 0:02:54.9]} 9. O-O {[%clk 0:02:55.2]} 9... Re8 {[%clk
0:02:55.3]} 10. Nd2 {[%clk 0:02:54.1]} 10... Na6 {[%clk 0:02:54.1]} 11. e4
{[%clk 0:02:52.9]} 11... Nc7 {[%clk 0:02:52.6]} 12. a4 {[%clk 0:02:52.5]} 12...
Na6 {[%clk 0:02:51.4]} 13. f3 {[%clk 0:02:52.1]} 13... Nb4 {[%clk 0:02:50.4]}
14. Kh1 {[%clk 0:02:51.9]} 14... Nh5 {[%clk 0:02:34.9]} 15. Nc4 {[%clk 0:02:48]}
15... Qh4 {[%clk 0:02:26.9]} 16. Kg1 {[%clk 0:02:35.3]} 16... f5 {[%clk
0:02:13]} 17. Be3 {[%clk 0:02:15.6]} 17... f4 {[%clk 0:02:04]} 18. Bf2 {[%clk
0:02:15.4]} 18... Qe7 {[%clk 0:02:03.6]} 19. Nb5 {[%clk 0:02:09.3]} 19... Rd8
{[%clk 0:01:57.4]} 20. Qb3 {[%clk 0:01:57.2]} 20... a6 {[%clk 0:01:54.9]} 21.
Nbxd6 {[%clk 0:01:54.3]} 21... Rxd6 {[%clk 0:01:51.2]} 22. Bxc5 {[%clk
0:01:54.8]} 22... Nxd5 {[%clk 0:01:19]} 23. Nxd6 {[%clk 0:01:50.4]} 23... Be6
{[%clk 0:00:59.3]} 24. exd5 {[%clk 0:01:50]} 24... Bf7 {[%clk 0:00:56.7]} 25.
Rfe1 {[%clk 0:01:39.9]} 25... Rc8 {[%clk 0:00:47.3]} 26. Qa3 {[%clk 0:01:22.2]}
26... Rxc5 {[%clk 0:00:31.5]} 27. Qxc5 {[%clk 0:01:22.2]} 27... Bf8 {[%clk
0:00:28.3]} 28. Bxa6 {[%clk 0:01:10.6]} 28... Qxd6 {[%clk 0:00:26.1]} 29. Qxd6
{[%clk 0:01:10.8]} 29... Bxd6 {[%clk 0:00:27]} 30. Bxb7 {[%clk 0:01:11.4]} 30...
Nf6 {[%clk 0:00:25.5]} 31. a5 {[%clk 0:01:09.9]} 31... Kf8 {[%clk 0:00:24.8]}
32. a6 {[%clk 0:01:09.8]} 32... Bc5+ {[%clk 0:00:25.7]} 33. Kh1 {[%clk
0:01:10.2]} 33... Ba7 {[%clk 0:00:26.6]} 34. d6 {[%clk 0:01:08.6]} 34... Be8
{[%clk 0:00:23.7]} 35. Rac1 {[%clk 0:01:04.7]} 35... Bd7 {[%clk 0:00:20.3]} 36.
Rc7 {[%clk 0:01:03.7]} 36... Bb6 {[%clk 0:00:18.5]} 37. Re7 {[%clk 0:01:01.9]}
37... Bxc7 {[%clk 0:00:17.6]} 38. Rxd7 {[%clk 0:01:02]} 38... Bb6 {[%clk
0:00:11.8]} 39. Rc7 {[%clk 0:01:00.3]} 39... Ne8 {[%clk 0:00:09.6]} 40. Rc8
{[%clk 0:00:58.2]} 40... Kf7 {[%clk 0:00:08.2]} 41. d7 {[%clk 0:00:58.5]} 41...
Nd6 {[%clk 0:00:06.7]} 42. d8=Q {[%clk 0:00:57.7]} 42... Bxd8 {[%clk 0:00:07.2]}
43. Rxd8 {[%clk 0:00:57.8]} 43... Nb5 {[%clk 0:00:07.9]} 1-0

[Event "Late-Titled-Tuesday-Blitz-March-19-2024"]
[Site "Chess.com"]
[Date "2024.03.19"]
[Round "2"]
[White "Lion-Al-Messi"]
[Black "ChessBrainiacOnTwitch"]
[Result "0-1"]
[WhiteElo "2586"]
[BlackElo "2823"]
[TimeControl "180+1"]
[EndTime "14:17:41 PDT"]
[Termination "ChessBrainiacOnTwitch won on time"]

1. e4 {[%clk 0:03:00.9]} 1... c5 {[%clk 0:02:59.3]} 2. Nf3 {[%clk 0:03:00.5]}
2... d6 {[%clk 0:02:56.3]} 3. d4 {[%clk 0:03:00.1]} 3... cxd4 {[%clk 0:02:57.2]}
4. Nxd4 {[%clk 0:03:00.6]} 4... Nf6 {[%clk 0:02:57.9]} 5. Nc3 {[%clk 0:03:00.5]}
5... Nc6 {[%clk 0:02:58.7]} 6. Bg5 {[%clk 0:02:59.7]} 6... e6 {[%clk 0:02:58.8]}
7. Qd2 {[%clk 0:02:59.5]} 7... a6 {[%clk 0:02:58.9]} 8. O-O-O {[%clk 0:02:59.1]}
8... Bd7 {[%clk 0:02:58]} 9. f4 {[%clk 0:02:58.6]} 9... Be7 {[%clk 0:02:58.2]}
10. Bxf6 {[%clk 0:02:55.7]} 10... Bxf6 {[%clk 0:02:44.6]} 11. Nxc6 {[%clk
0:02:53.4]} 11... Bxc6 {[%clk 0:02:45.5]} 12. Qxd6 {[%clk 0:02:35.3]} 12... Qxd6
{[%clk 0:02:41.9]} 13. Rxd6 {[%clk 0:02:36.2]} 13... Bxc3 {[%clk 0:02:42.8]} 14.
bxc3 {[%clk 0:02:35.2]} 14... Bxe4 {[%clk 0:02:42.1]} 15. Bd3 {[%clk 0:02:03]}
15... Bc6 {[%clk 0:02:37]} 16. Re1 {[%clk 0:01:52.7]} 16... Ke7 {[%clk
0:02:35.1]} 17. Rd4 {[%clk 0:01:50.3]} 17... Kf6 {[%clk 0:01:47.3]} 18. g4
{[%clk 0:01:46.5]} 18... h6 {[%clk 0:01:45.7]} 19. h4 {[%clk 0:01:45.8]} 19...
g6 {[%clk 0:01:33.1]} 20. Rf1 {[%clk 0:01:20.1]} 20... Rad8 {[%clk 0:01:29.5]}
21. g5+ {[%clk 0:01:15.7]} 21... Kg7 {[%clk 0:01:28]} 22. Rb4 {[%clk 0:00:57.2]}
22... Rh7 {[%clk 0:01:11.1]} 23. Kb2 {[%clk 0:00:45.2]} 23... Rdh8 {[%clk
0:01:10.9]} 24. h5 {[%clk 0:00:37.9]} 24... hxg5 {[%clk 0:01:01.9]} 25. hxg6
{[%clk 0:00:37.7]} 25... fxg6 {[%clk 0:00:59.7]} 26. fxg5 {[%clk 0:00:37.8]}
26... Rh5 {[%clk 0:00:52.6]} 27. Rbf4 {[%clk 0:00:37.2]} 27... Rxg5 {[%clk
0:00:44.9]} 28. Rf7+ {[%clk 0:00:37]} 28... Kh6 {[%clk 0:00:45.5]} 29. Re7
{[%clk 0:00:28.8]} 29... e5 {[%clk 0:00:38.2]} 30. Rf2 {[%clk 0:00:28.7]} 30...
Re8 {[%clk 0:00:33.7]} 31. Ref7 {[%clk 0:00:06.1]} 31... e4 {[%clk 0:00:32.2]}
32. Be2 {[%clk 0:00:06.6]} 32... Rg3 {[%clk 0:00:28.2]} 33. Rh2+ {[%clk
0:00:06.4]} 33... Kg5 {[%clk 0:00:28.5]} 0-1